bitfinex/quotes_SOLUSD_20251019
["timestamp","ask_amount","ask_price","bid_price","bid_amount"]
[1760889145289,2.28545167,190.9,190.89,37.07]
[1760889146478,2.28545167,190.9,190.89,42.3086191]
[1760889146788,2.28545167,190.9,190.89,41.5986191]
[1760889149283,5.24090334,190.9,190.86,5.23944252]
[1760889149482,2.28545167,190.87,190.86,5.23944252]
[1760889149860,0.67,190.89,190.86,5.94944252]
[1760889150066,2.28545167,190.87,190.86,5.23944252]
[1760889150783,2.28545167,190.87,190.86,5.94944252]
[1760889151382,2.28545167,190.88,190.86,5.94944252]
[1760889151577,2.28545167,190.88,190.87,0.71]
[1760889151768,2.28545167,190.88,190.87,5.94916802]
[1760889153985,2.28545167,190.88,190.86,5.23944252]
[1760889154165,2.28545167,190.87,190.86,5.94944252]
[1760889154681,2.28545167,190.88,190.86,19.04804882]
[1760889154874,2.28545167,190.88,190.87,0.71]
[1760889157984,2.28545167,190.88,190.87,5.94916802]
[1760889158295,2.28545167,190.88,190.87,5.23916802]
[1760889158595,2.28545167,190.88,190.87,5.94916802]
[1760889159469,2.28545167,190.89,190.87,5.94916802]
[1760889159691,2.28545167,190.89,190.88,42.30889354]
[1760889160080,2.28545167,190.89,190.88,41.59889354]
[1760889162904,2.28545167,190.91,190.88,55.4061274]
[1760889163080,2.28545167,190.91,190.89,0.71]
[1760889163397,2.28545167,190.9,190.88,54.6961274]
[1760889163576,2.28545167,190.89,190.88,54.6961274]
[1760889164892,2.28545167,190.9,190.88,54.6961274]
[1760889165101,2.28545167,190.89,190.88,54.6961274]
[1760889165994,2.28545167,190.89,190.88,55.4061274]
[1760889168987,2.28545167,190.89,190.88,41.59889354]
[1760889169305,2.28545167,190.89,190.88,42.30889354]
[1760889169492,2.28545167,190.89,190.88,41.59889354]
[1760889170480,2.95545167,190.89,190.88,41.59889354]
[1760889173505,2.95545167,190.89,190.87,5.23916628]
[1760889173728,2.95545167,190.88,190.87,5.23916628]
[1760889173902,0.67,190.88,190.85,41.57944822]
[1760889174097,2.28545167,190.86,190.85,41.57944822]
[1760889179230,22.88000001,190.93,190.85,55.38874085]
[1760889179231,0.67,190.91,190.85,55.38874085]
[1760889179518,2.28545167,190.88,190.86,0.71]
[1760889179721,2.28545167,190.88,190.87,37.05]
[1760889180414,2.28545167,190.88,190.87,42.28916802]
[1760889181498,1e-08,190.93,190.87,55.38708807]
[1760889181701,2.28545167,190.91,190.88,0.71]
[1760889182017,1e-08,190.93,190.87,18.33708807]
[1760889182018,2.28545167,190.89,190.87,18.33708807]
[1760889182219,2.28545167,190.88,190.87,18.33708807]
[1760889182423,2.95545167,190.88,190.87,18.33708807]
[1760889182618,2.95545167,190.88,190.87,54.67708807]
[1760889182920,2.95545167,190.88,190.87,41.57916802]
[1760889184515,2.95545167,190.88,190.85,5.23971705]
[1760889184714,2.28545167,190.86,190.85,41.57971705]
[1760889186921,3.57316543,190.86,190.85,41.57971705]
[1760889188015,3.57316543,190.86,190.85,42.28971705]
[1760889191713,3.57316543,190.86,190.85,41.57971705]
[1760889194817,4.27316543,190.86,190.85,5.23971705]
[1760889195116,4.27316543,190.86,190.84,36.34]
[1760889195323,31.69156595,190.9,190.84,41.57995724]
[1760889195324,4.27316543,190.85,190.84,41.57995724]
[1760889197120,3.57316543,190.85,190.84,41.57995724]
[1760889197316,4.27316543,190.85,190.84,41.57995724]
[1760889197531,3.57316543,190.85,190.84,36.34]
[1760889198750,3.57316543,190.85,190.84,41.57999161]
[1760889199644,4.27316543,190.85,190.84,41.57999161]
[1760889199821,3.57316543,190.85,190.84,41.57999161]
[1760889202246,4.27316543,190.85,190.84,36.34]
[1760889204872,3.57316543,190.85,190.84,36.34]
[1760889205022,3.57316543,190.85,190.84,5.23999161]
[1760889205226,3.57316543,190.85,190.84,41.57999161]
[1760889206843,4.27316543,190.85,190.84,41.57999161]
[1760889207043,3.57316543,190.85,190.84,41.57999161]
[1760889207352,4.27316543,190.85,190.84,41.57999161]
[1760889207522,4.27316543,190.85,190.84,36.34]
[1760889209341,22.88,190.84,190.83,36.34]
[1760889209543,4.27316543,190.84,190.8,5.24098702]
[1760889209726,0.7,190.83,190.81,36.34]
[1760889209927,0.7,190.82,190.81,36.34]
[1760889210840,4.27316543,190.82,190.81,36.34]
[1760889211548,3.57316543,190.82,190.78,0.69]
[1760889211745,3.57316543,190.79,190.78,5.24139657]
[1760889212047,3.57316543,190.79,190.78,42.27139657]
[1760889214241,3.57316543,190.79,190.78,41.58139657]
[1760889214627,3.57316543,190.79,190.78,36.34]
[1760889215448,0.7,190.81,190.78,41.58154872]
[1760889215742,3.57316543,190.79,190.78,42.27154872]
[1760889215931,3.57316543,190.79,190.78,41.58154872]
[1760889217242,3.57316543,190.79,190.78,42.27154872]
[1760889222735,3.57316543,190.79,190.78,41.60154872]
[1760889225162,3.57316543,190.79,190.78,42.32154872]
[1760889225861,3.57316543,190.79,190.78,36.36]
[1760889226034,3.57316543,190.79,190.78,37.08]
[1760889228656,3.57316543,190.79,190.78,36.36]
[1760889229257,3.57316543,190.79,190.78,37.08]
[1760889229638,3.57316543,190.79,190.78,36.36]
[1760889231064,4.29316543,190.79,190.78,36.36]
[1760889234562,4.29316543,190.79,190.77,5.24167559]
[1760889234761,0.72,190.79,190.78,36.36]
[1760889235062,0.72,190.8,190.78,41.60160894]
[1760889235434,0.72,190.79,190.78,41.60160894]
[1760889236047,3.57316543,190.79,190.78,42.32160894]
[1760889236562,3.57316543,190.79,190.78,41.60160894]
[1760889239446,3.57316543,190.79,190.78,42.32160894]
[1760889240968,144.83557251,190.87,190.78,42.32160894]
[1760889241284,3.57316543,190.84,190.79,37.06]
[1760889241452,3.57316543,190.83,190.8,0.72]
[1760889241653,3.57316543,190.83,190.81,36.34]
[1760889241971,0.72,190.87,190.82,0.72]
[1760889242170,26.26872665,191.03,190.82,0.72]
[1760889242171,3.57316543,190.86,190.83,36.34]
[1760889242351,3.57316543,190.87,190.84,0.72]
[1760889242551,3.57316543,190.87,190.85,41.57971705]
[1760889242754,3.57316543,190.87,190.86,0.72]
[1760889243143,0.72,190.9,190.86,0.72]
[1760889243347,3.57316543,190.87,190.86,0.72]
[1760889243560,3.57316543,190.87,190.86,42.29944252]
[1760889246678,0.72000001,190.93,190.86,55.39804882]
[1760889246973,3.57316543,190.89,190.87,0.72]
[1760889247173,3.57316543,190.89,190.88,36.34]
[1760889247374,3.57316543,190.89,190.88,37.06]
[1760889248763,2.28552412,190.9,190.89,5.2386191]
[1760889249165,3.00552412,190.9,190.88,36.34]
[1760889249363,2.28552412,190.89,190.88,41.57889354]
[1760889251461,2.95552412,190.89,190.86,5.23944219]
[1760889251671,2.28552412,190.87,190.86,5.23944219]
[1760889251872,2.28552412,190.87,190.86,41.57944219]
[1760889252553,2.28552412,190.87,190.86,5.23944219]
[1760889252770,2.28552412,190.87,190.86,41.57944219]
[1760889253786,2.28552412,190.87,190.86,42.27944219]
[1760889255462,2.28552412,190.88,190.86,42.27944219]
[1760889255670,2.28552412,190.89,190.87,0.71]
[1760889255985,2.28552412,190.89,190.88,36.34]
[1760889256189,2.28552412,190.89,190.88,37.05]
[1760889257374,2.28552412,190.89,190.88,42.28889354]
[1760889257576,2.28552412,190.89,190.88,41.57889354]
[1760889257779,2.94552412,190.89,190.88,41.57889354]
[1760889257978,2.94552412,190.89,190.88,5.23889354]
[1760889258290,2.94552412,190.89,190.88,41.57889354]
[1760889258473,2.94552412,190.89,190.87,5.2391373]
[1760889258673,2.28552412,190.88,190.87,5.2391373]
[1760889258895,2.94552412,190.88,190.87,41.5791373]
[1760889259906,2.94552412,190.88,190.87,36.34]
[1760889262291,2.28552412,190.88,190.87,36.34]
[1760889262782,2.94552412,190.88,190.87,36.34]
[1760889262981,2.28552412,190.88,190.87,36.34]
[1760889263990,2.94552412,190.88,190.87,36.34]
[1760889266591,2.28552412,190.88,190.87,36.34]
[1760889267399,2.28552412,190.88,190.87,42.28916628]
[1760889267797,2.28552412,190.88,190.87,41.57916628]
[1760889268899,2.28552412,190.88,190.87,42.28916628]
[1760889269310,0.66000001,190.93,190.87,55.38708633]
[1760889269490,2.28552412,190.89,190.88,0.71]
[1760889269684,2.28552412,190.9,190.88,0.71]
[1760889269892,2.28552412,190.9,190.89,36.32]
[1760889270090,2.28552412,190.9,190.89,37.03]
[1760889270586,2.28552412,190.91,190.89,42.2686191]
[1760889270793,2.28552412,190.92,190.9,0.71]
[1760889270990,2.28552412,190.91,190.9,0.71]
[1760889271204,2.28552412,190.91,190.9,37.03]
[1760889272011,2.28552412,190.91,190.9,42.26834468]
[1760889279405,2.28552412,190.92,190.9,55.36420638]
[1760889279705,2.28552413,190.93,190.91,0.71]
[1760889279928,2.28552413,190.93,190.92,36.32]
[1760889280110,2.94552413,190.93,190.92,36.32]
[1760889280816,2.28552413,190.93,190.92,36.32]
[1760889281007,2.28552413,190.93,190.92,41.55779593]
[1760889281316,2.94552413,190.93,190.92,41.55779593]
[1760889283011,2.28552413,190.93,190.92,41.55779593]
[1760889283615,2.94552413,190.93,190.92,41.55779593]
[1760889284521,2.28552413,190.93,190.92,41.55779593]
[1760889284820,2.96552413,190.93,190.92,41.55779593]
[1760889285020,2.28552413,190.93,190.92,41.55779593]
[1760889285725,2.96552413,190.93,190.92,41.55779593]
[1760889288635,2.96552413,190.93,190.92,5.23779593]
[1760889288836,2.96552413,190.93,190.92,41.55779593]
[1760889290135,2.28552413,190.93,190.92,41.55779593]
[1760889291033,1e-08,190.93,190.92,41.55779593]
[1760889291207,2.28552413,190.93,190.92,42.25779593]
[1760889294236,1e-08,190.93,190.92,42.25779593]
[1760889294425,1e-08,190.93,190.92,5.93779593]
[1760889294741,1e-08,190.93,190.92,42.25779593]
[1760889296040,1e-08,190.93,190.92,5.93779593]
[1760889296240,1e-08,190.93,190.92,42.25779593]
[1760889296729,2.28552413,190.93,190.92,42.25779593]
[1760889297041,2.28552413,190.93,190.92,41.55779593]
[1760889299739,2.28552413,190.93,190.92,5.23779593]
[1760889299952,2.28552413,190.93,190.92,41.53779593]
[1760889300716,2.28552413,190.93,190.92,42.23779593]
[1760889301214,1e-08,190.93,190.92,42.23779593]
[1760889302737,2.28552413,190.93,190.92,42.23779593]
[1760889305126,1e-08,190.93,190.92,42.23779593]
[1760889305433,2.28552413,190.93,190.92,42.23779593]
[1760889308853,3.57003391,190.93,190.92,42.23779593]
[1760889310758,3.49549291,190.93,190.92,42.23779593]
[1760889312359,4.17549291,190.93,190.92,41.53779593]
[1760889312562,0.68,190.93,190.92,41.53779593]
[1760889312771,4.2500339,190.93,190.92,41.53779593]
[1760889315560,4.2500339,190.93,190.9,18.33420638]
[1760889315762,3.5700339,190.91,190.9,18.99420638]
[1760889315961,3.5700339,190.91,190.9,54.63420638]
[1760889317479,3.5700339,190.91,190.9,18.99420638]
[1760889317674,3.5700339,190.91,190.9,55.29420638]
[1760889318250,3.5700339,190.91,190.9,54.63420638]
[1760889321375,3.5700339,190.91,190.9,55.29420638]
[1760889321873,3.5700339,190.91,190.9,54.63420638]
[1760889322670,4.2400339,190.91,190.88,5.23864625]
[1760889322977,3.5700339,190.89,190.88,5.23864625]
[1760889323158,3.5700339,190.89,190.88,41.53864625]
[1760889324768,4.2400339,190.89,190.88,41.53864625]
[1760889326168,4.2400339,190.89,190.88,36.3]
[1760889334083,22.88,190.88,190.87,36.3]
[1760889334301,27.1200339,190.88,190.87,36.3]
[1760889334862,27.1200339,190.88,190.84,5.23982574]
[1760889335177,3.5700339,190.85,190.84,5.23982574]
[1760889335374,3.5700339,190.85,190.84,36.3]
[1760889335575,3.5700339,190.85,190.84,36.96]
[1760889336383,3.5700339,190.85,190.84,42.19999161]
[1760889336983,3.5700339,190.85,190.84,41.53999161]
[1760889337976,3.5700339,190.85,190.84,42.19999161]
[1760889338183,3.5700339,190.85,190.84,0.66]
[1760889338486,3.5700339,190.85,190.84,36.3]
[1760889339880,3.5700339,190.85,190.84,36.96]
[1760889342368,3.5700339,190.85,190.84,42.19999161]
[1760889342567,15.75009843,190.91,190.84,55.29997065]
[1760889342772,3.5700339,190.88,190.85,0.66]
[1760889343070,3.5700339,190.88,190.85,36.98]
[1760889343384,3.5700339,190.88,190.86,0.66]
[1760889343693,0.67,190.92,190.87,5.23916802]
[1760889343894,0.7,190.91,190.88,36.32]
[1760889344189,23.58,190.9,190.88,36.32]
[1760889344778,3.5700339,190.89,190.88,36.32]
[1760889347696,3.5700339,190.89,190.88,42.22889354]
[1760889349101,3.5700339,190.89,190.88,36.99]
[1760889350804,4.2700339,190.89,190.86,5.2394176]
[1760889350995,3.5700339,190.87,190.86,5.2394176]
[1760889351193,3.5700339,190.87,190.86,41.5394176]
[1760889351390,4.2700339,190.87,190.86,36.3]
[1760889353800,0.7,190.93,190.87,5.23916802]
[1760889354013,3.5700339,190.89,190.87,5.23916802]
[1760889354320,3.5700339,190.89,190.88,36.3]
[1760889354497,3.5700339,190.89,190.88,36.97]
[1760889355223,3.5700339,190.9,190.88,42.20889354]
[1760889355385,3.5700339,190.9,190.89,0.67]
[1760889356113,28.11697746,190.95,190.89,0.67]
[1760889356114,3.5700339,190.91,190.89,0.67]
[1760889356400,3.5700339,190.92,190.89,0.67]
[1760889356606,0.2,190.96,190.89,0.67]
[1760889356791,3.5700339,190.93,190.89,0.67]
[1760889356994,3.5700339,190.92,190.9,5.23834468]
[1760889357193,3.5700339,190.92,190.91,36.97]
[1760889358287,0.2,190.96,190.92,2.9799661]
[1760889358604,3.5700339,190.93,190.92,3.6499661]
[1760889359703,3.5700339,190.93,190.92,8.88776203]
[1760889363108,3.5700339,190.94,190.92,8.88776203]
[1760889363418,3.5700339,190.94,190.93,0.67]
[1760889364317,3.5700339,190.94,190.93,5.9075216]
[1760889364819,3.5700339,190.95,190.93,5.9075216]
[1760889365111,4.2700339,190.94,190.93,5.2375216]
[1760889365315,3.5700339,190.94,190.93,41.5375216]
[1760889367224,3.5700339,190.94,190.93,42.2075216]
[1760889367435,13.0773151,190.94,190.92,2.9799661]
[1760889367728,13.0773151,190.94,190.84,36.97]
[1760889367729,22.88,190.9,190.84,36.97]
[1760889367905,27.1500339,190.9,190.85,36.3]
[1760889368105,3.5700339,190.86,190.85,36.97]
[1760889368817,3.5700339,190.86,190.85,36.3]
[1760889369409,26.4500339,190.86,190.85,36.3]
[1760889370222,27.1500339,190.86,190.85,36.3]
[1760889370418,27.1500339,190.86,190.82,5.24030344]
[1760889370601,23.58,190.86,190.83,36.32]
[1760889370913,2.28813407,190.84,190.83,36.32]
[1760889372631,2.28813407,190.84,190.81,5.24081547]
[1760889372807,23.58,190.86,190.82,36.32]
[1760889373007,2.28813407,190.83,190.82,36.32]
[1760889374015,2.28813407,190.83,190.82,0.69]
[1760889374415,2.28813407,190.83,190.82,37.01]
[1760889375031,2.28813407,190.83,190.82,42.25054082]
[1760889376228,2.28813407,190.83,190.82,5.93054082]
[1760889376425,22.88,190.89,190.82,42.25054082]
[1760889376620,2.28813407,190.83,190.82,41.56054082]
[1760889376824,2.28813407,190.83,190.82,5.24054082]
[1760889377028,2.28813407,190.83,190.82,41.56054082]
[1760889377221,9.85253628,190.9,190.82,55.35189287]
[1760889377222,9.15253628,190.9,190.82,55.35189287]
[1760889377431,13.09299646,190.95,190.83,37.01]
[1760889377432,2.28813407,190.87,190.83,37.01]
[1760889377734,2.28813407,190.91,190.86,2.28813407]
[1760889377920,0.2,190.96,190.87,37.01]
[1760889377921,2.28813407,190.9,190.87,37.01]
[1760889378224,2.28813407,190.89,190.88,42.26889354]
[1760889378605,2.28813407,190.9,190.88,42.26889354]
[1760889378800,2.28813407,190.9,190.89,0.69]
[1760889379013,2.28813407,190.91,190.89,0.69]
[1760889379244,2.28813407,190.91,190.9,36.32]
[1760889379536,2.28813407,190.91,190.9,37.01]
[1760889379829,2.28813407,190.91,190.9,0.69]
[1760889380035,2.28813407,190.91,190.9,42.24834468]
[1760889383914,2.28813407,190.92,190.9,42.24834468]
[1760889384119,2.28813407,190.92,190.91,0.69]
[1760889386132,2.28813407,190.92,190.91,5.92807029]
[1760889386432,22.88,190.95,190.91,5.92807029]
[1760889386628,2.28813407,190.92,190.91,5.92807029]
[1760889387333,2.26176585,190.92,190.91,5.92807029]
[1760889391428,2.26176585,190.92,190.91,42.22807029]
[1760889392132,2.28813407,190.94,190.91,42.22807029]
[1760889392332,2.28813407,190.94,190.92,0.69]
[1760889392542,2.28813407,190.94,190.93,36.3]
[1760889392715,2.28813407,190.94,190.93,36.99]
[1760889392915,2.28813407,190.95,190.93,36.99]
[1760889393114,2.28813407,190.95,190.94,0.69]
[1760889393423,2.28813407,190.95,190.94,36.99]
[1760889393814,2.28813407,190.95,190.94,36.3]
[1760889394114,2.28813407,190.95,190.93,5.2375216]
[1760889394311,2.28813407,190.94,190.93,5.9275216]
[1760889394615,2.28813407,190.94,190.93,42.2275216]
[1760889395049,2.28813407,190.94,190.93,5.9275216]
[1760889395215,2.28813407,190.94,190.93,42.2275216]
[1760889396239,2.28813407,190.94,190.93,5.9275216]
[1760889397025,2.28813407,190.94,190.93,42.2275216]
[1760889397230,2.98813407,190.94,190.93,36.3]
[1760889397432,2.98813407,190.94,190.92,5.23777339]
[1760889397629,2.28813407,190.93,190.9,5.23808817]
[1760889397831,2.28813407,190.91,190.9,5.23808817]
[1760889398231,2.28813407,190.91,190.9,41.53808817]
[1760889398632,2.28813407,190.91,190.9,5.23808817]
[1760889398832,2.28813407,190.91,190.9,41.53808817]
[1760889399033,2.28813407,190.91,190.9,36.3]
[1760889399352,2.28813407,190.91,190.9,36.99]
[1760889400950,2.28813407,190.91,190.9,42.22834468]
[1760889402842,2.28813407,190.91,190.9,41.53834468]
[1760889403434,2.28813407,190.91,190.9,42.22834468]
[1760889404643,2.28813407,190.91,190.9,41.53834468]
[1760889406833,2.28813407,190.91,190.9,42.19834468]
[1760889408538,2.28813407,190.92,190.9,42.19834468]
[1760889408859,22.88,190.95,190.91,0.66]
[1760889409171,2.28813407,190.92,190.9,41.53834468]
[1760889409335,2.28813407,190.91,190.9,41.53834468]
[1760889409754,2.28813407,190.91,190.9,42.19834468]
[1760889412740,2.28813407,190.93,190.9,55.29420638]
[1760889412935,2.28813407,190.93,190.91,0.66]
[1760889413135,2.28813407,190.93,190.92,36.3]
[1760889413340,2.28813407,190.93,190.92,36.96]
[1760889414057,2.28813407,190.93,190.92,42.19779593]
[1760889414941,0.2,190.96,190.92,55.29228576]
[1760889415145,2.28813407,190.94,190.93,0.66]
[1760889415352,2.28813407,190.94,190.93,36.96]
[1760889415560,0.2,190.96,190.93,36.96]
[1760889415759,0.2,190.96,190.94,0.66]
[1760889415949,0.2,190.96,190.95,41.53697302]
[1760889416261,0.2,190.96,190.95,42.19697302]
[1760889416658,2.48813407,190.96,190.95,42.19697302]
[1760889416857,2.48813407,190.96,190.94,5.23720503]
[1760889417056,0.2,190.96,190.95,36.3]
[1760889417272,0.2,190.96,190.94,5.23720503]
[1760889417477,0.85,190.96,190.95,36.3]
[1760889417640,0.2,190.96,190.95,36.3]
[1760889418157,3.13813407,190.96,190.95,36.3]
[1760889421574,2.48813407,190.96,190.95,36.3]
[1760889421957,2.48813407,190.96,190.95,42.19697302]
[1760889423561,2.48813407,190.96,190.95,36.3]
[1760889423954,3.13813407,190.96,190.93,5.23729849]
[1760889424159,2.28813407,190.94,190.93,5.23729849]
[1760889424359,2.28813407,190.94,190.93,41.53729849]
[1760889425463,2.28813407,190.94,190.93,36.3]
[1760889427353,2.28813407,190.94,190.93,36.96]
[1760889427679,2.28813407,190.94,190.93,36.3]
[1760889431091,2.28813407,190.94,190.92,5.23776519]
[1760889431267,2.28813407,190.93,190.92,5.23776519]
[1760889431596,2.28813407,190.93,190.92,42.24776519]
[1760889432688,3.57039819,190.93,190.92,42.24776519]
[1760889432988,0.2,190.96,190.92,55.34225502]
[1760889433198,0.2,190.96,190.93,0.71]
[1760889433568,0.2,190.96,190.93,4.28039819]
[1760889433767,0.2,190.96,190.94,0.71]
[1760889433974,0.2,190.96,190.95,36.3]
[1760889434295,0.2,190.96,190.95,37.0]
[1760889434495,0.2,190.96,190.95,42.23697302]
[1760889435196,0.2,190.96,190.95,5.93697302]
[1760889435385,0.2,190.96,190.95,42.23697302]
[1760889437794,0.2,190.96,190.95,5.93697302]
[1760889437994,0.2,190.96,190.95,42.23697302]
[1760889441878,1e-08,190.96,190.95,45.80737121]
[1760889442701,1e-08,190.96,190.95,42.23697302]
[1760889443577,1e-08,190.96,190.95,42.21697302]
[1760889444394,1e-08,190.96,190.95,45.78737121]
[1760889445203,1e-08,190.96,190.95,42.21697302]
[1760889451392,1e-08,190.96,190.95,5.93697302]
[1760889451593,1e-08,190.96,190.95,41.51697302]
[1760889453404,166.4,191.1,190.95,45.78737121]
[1760889453587,0.68,191.05,190.99,3.57039819]
[1760889453786,0.68,191.05,191.0,36.98]
[1760889453989,3.57039819,191.06,191.01,0.7]
[1760889454203,4.25039819,191.06,191.02,36.98]
[1760889454988,3.57039819,191.06,191.02,36.98]
[1760889455189,0.2,191.1,191.02,36.28]
[1760889455389,4.45039819,191.07,191.03,18.32172956]
[1760889455591,0.88,191.07,191.03,18.32172956]
[1760889455805,4.45039819,191.07,191.03,18.32172956]
[1760889456200,4.45039819,191.07,191.04,36.28]
[1760889456505,3.77039819,191.07,191.04,36.28]
[1760889456710,0.2,191.07,191.05,5.93423187]
[1760889456903,0.2,191.07,191.06,0.7]
[1760889458713,0.2,191.07,191.06,5.23395791]
[1760889459322,4.45039819,191.07,191.06,41.51395791]
[1760889460317,3.77039819,191.07,191.06,41.51395791]
[1760889460812,3.77039819,191.07,191.04,5.23450586]
[1760889460995,0.2,191.07,191.06,36.28]
[1760889461422,0.88,191.07,191.04,5.23450586]
[1760889461596,0.68,191.06,191.05,36.28]
[1760889462197,0.2,191.07,191.05,36.28]
[1760889462503,3.57039819,191.06,191.05,36.28]
[1760889462696,4.25039819,191.06,191.05,41.51423187]
[1760889462896,3.57039819,191.06,191.05,41.51423187]
[1760889464002,4.23039819,191.06,191.05,41.51423187]
[1760889464218,4.23039819,191.06,190.99,13.79918765]
[1760889464420,3.57039819,191.01,191.0,36.28]
[1760889464713,3.57039819,191.01,191.0,36.99]
[1760889465420,3.57039819,191.01,191.0,42.22560209]
[1760889465806,3.57039819,191.02,191.0,42.22560209]
[1760889466120,3.57039819,191.04,191.01,36.99]
[1760889466306,3.57039819,191.05,191.02,0.71]
[1760889467220,3.57039819,191.05,191.04,5.23450586]
[1760889467420,3.57039819,191.05,191.04,41.51450586]
[1760889468916,3.57039819,191.05,191.03,5.23477987]
[1760889469116,3.57039819,191.05,191.04,36.28]
[1760889469818,3.57039819,191.05,191.03,5.23477987]
[1760889470025,3.57039819,191.05,191.04,36.28]
[1760889471024,3.57039819,191.05,191.03,5.23477987]
[1760889471204,3.57039819,191.05,191.04,41.51450586]
[1760889471821,4.23039819,191.05,191.04,41.51450586]
[1760889472012,4.23039819,191.05,191.01,5.23532799]
[1760889472324,3.57039819,191.02,191.01,5.94532799]
[1760889472698,3.57039819,191.02,191.01,42.22532799]
[1760889473726,3.57039819,191.03,191.01,42.22532799]
[1760889474113,3.57039819,191.03,191.02,41.51505392]
[1760889478429,4.23039819,191.03,191.02,41.51505392]
[1760889478738,4.23039819,191.03,191.02,36.28]
[1760889481328,3.57039819,191.03,191.02,0.71]
[1760889481507,3.57039819,191.03,191.02,42.2250164]
[1760889481925,3.57039819,191.04,191.02,42.2250164]
[1760889482114,3.57039819,191.04,191.03,0.71]
[1760889482737,3.57039819,191.04,191.03,5.94477987]
[1760889484323,3.57039819,191.05,191.03,5.94477987]
[1760889484625,3.57039819,191.06,191.04,0.71]
[1760889484833,3.57039819,191.06,191.05,36.28]
[1760889485138,3.57039819,191.06,191.05,42.22423187]
[1760889486729,3.77039819,191.07,191.05,42.22423187]
[1760889486921,3.77039819,191.07,191.06,0.71]
[1760889487522,3.77039819,191.07,191.06,5.94395791]
[1760889488233,3.77039819,191.07,191.05,41.5141343]
[1760889488435,3.57039819,191.06,191.05,41.5141343]
[1760889492745,2.28233155,191.06,191.05,41.5141343]
[1760889493037,2.96233155,191.06,191.05,36.26]
[1760889494419,22.88,191.05,191.04,36.28]
[1760889494623,25.86233155,191.05,191.04,36.28]
[1760889497522,25.16233155,191.05,191.04,36.28]
[1760889501652,6.13380171,191.07,191.04,36.97]
[1760889501653,0.2,191.07,191.04,36.97]
[1760889501829,2.28233155,191.05,191.04,36.28]
[1760889502350,2.28233155,191.05,191.04,36.97]
[1760889503557,2.28233155,191.05,191.04,42.20450586]
[1760889514855,2.28233155,191.06,191.04,55.29077051]
[1760889515054,2.28233155,191.06,191.05,0.69]
[1760889515464,2.28233155,191.06,191.05,5.92423187]
[1760889515639,2.98233155,191.06,190.99,5.23587622]
[1760889515839,0.2,191.07,191.0,36.97]
[1760889515840,0.7,191.05,191.0,36.97]
[1760889516042,0.7,191.04,191.0,36.97]
[1760889516447,0.7,191.06,191.01,0.69]
[1760889516859,2.28233155,191.02,191.01,0.69]
[1760889517660,2.28233155,191.02,191.01,5.92532799]
[1760889521367,2.28233155,191.03,191.01,19.01364797]
[1760889521552,2.28233155,191.03,191.02,36.97]
[1760889522451,2.28233155,191.03,191.02,42.20505392]
[1760889523351,2.28233155,191.04,191.02,42.20505392]
[1760889523550,2.28233155,191.04,191.03,0.69]
[1760889524583,2.28233155,191.04,191.03,5.92477987]
[1760889526157,2.28233155,191.04,191.03,5.23477987]
[1760889526465,2.28233155,191.04,191.03,41.51477987]
[1760889527058,2.98233155,191.04,191.03,41.51477987]
[1760889527478,2.28233155,191.04,191.03,41.51477987]
[1760889531069,0.2,191.07,191.03,42.18477987]
[1760889531274,0.2,191.07,191.03,41.51477987]
[1760889531275,2.28233155,191.04,191.03,41.51477987]
[1760889531771,2.28233155,191.04,191.03,42.18477987]
[1760889531976,2.28233155,191.05,191.03,55.27172956]
[1760889532152,2.28233155,191.05,191.03,54.60172956]
[1760889532352,2.28233155,191.05,191.04,0.67]
[1760889532864,2.28233155,191.05,191.04,0.64338248]
[1760889533064,2.28233155,191.05,191.04,5.87788834]
[1760889533760,0.2,191.07,191.04,5.87788834]
[1760889533958,2.28233155,191.05,191.04,5.23450586]
[1760889534167,2.28233155,191.05,191.04,41.51450586]
[1760889534361,2.99233155,191.05,191.01,5.23532799]
[1760889534670,0.91,191.07,191.02,36.28]
[1760889534875,0.2,191.07,191.02,36.28]
[1760889535077,0.91,191.07,191.03,0.67]
[1760889535384,0.91,191.07,191.04,5.23450586]
[1760889535566,0.91,191.07,191.05,36.28]
[1760889535764,2.28233155,191.06,191.05,36.28]
[1760889537773,2.28233155,191.06,191.05,42.18423187]
[1760889538356,2.28233155,191.06,191.05,36.28]